[Event "Titled Tuesday Blitz October 31 Late 2023"]
[White "Sanchez Alvares, Kelvin Antonio"]
[Black "Holt, Conrad"]
[WhiteFideId "3906680"]
[BlackFideId "2034387"]
[WhiteElo "2585"]
[BlackElo "2808"]
[Result "0-1"]
[Round "5"]
[TimeControl "180+1"]
[Date "2023.10.31"]
[WhiteClock "0:00:00"]
[BlackClock "0:00:27"]
[Board "33"]

1. e4 {[%clk 0:02:27]}  e6 {[%clk 0:02:59]} 2. d4 {[%clk 0:02:27]}  d5 {[%clk 0:02:59]} 3. Nd2 {[%clk 0:02:28]}  c5 {[%clk 0:02:59]} 4. exd5 {[%clk 0:02:28]}  Qxd5 {[%clk 0:02:58]} 5. dxc5 {[%clk 0:02:28]}  Qxc5 {[%clk 0:02:58]} 6. Ngf3 {[%clk 0:02:28]}  Nf6 {[%clk 0:02:58]} 7. Bd3 {[%clk 0:02:28]}  Nbd7 {[%clk 0:02:57]} 8. O-O {[%clk 0:02:28]}  Qc7 {[%clk 0:02:57]} 9. Ne4 {[%clk 0:02:26]}  Nxe4 {[%clk 0:02:56]} 10. Bxe4 {[%clk 0:02:27]}  Nc5 {[%clk 0:02:57]} 11. Qe2 {[%clk 0:02:26]}  Bd7 {[%clk 0:02:55]} 12. c3 {[%clk 0:02:12]}  Nxe4 {[%clk 0:02:54]} 13. Qxe4 {[%clk 0:02:13]}  Bd6 {[%clk 0:02:52]} 14. h3 {[%clk 0:02:06]}  O-O {[%clk 0:02:41]} 15. Ng5 {[%clk 0:01:58]}  f5 {[%clk 0:02:42]} 16. Qh4 {[%clk 0:01:51]}  h6 {[%clk 0:02:41]} 17. Nf3 {[%clk 0:01:51]}  Rf6 {[%clk 0:02:28]} 18. Rd1 {[%clk 0:01:43]}  Bc6 {[%clk 0:02:26]} 19. Nd4 {[%clk 0:01:38]}  Rg6 {[%clk 0:02:25]} 20. g4 {[%clk 0:01:00]}  fxg4 {[%clk 0:02:21]} 21. Qh5 {[%clk 0:01:00]}  Bh2+ {[%clk 0:02:08]} 22. Kf1 {[%clk 0:00:55]}  Be4 {[%clk 0:02:00]} 23. hxg4 {[%clk 0:00:50]}  Qc4+ {[%clk 0:01:58]} 24. Ke1 {[%clk 0:00:44]}  e5 {[%clk 0:01:53]} 25. Be3 {[%clk 0:00:35]}  exd4 {[%clk 0:01:40]} 26. Rxd4 {[%clk 0:00:34]}  Qe6 {[%clk 0:01:37]} 27. Qxh2 {[%clk 0:00:29]}  Rxg4 {[%clk 0:01:36]} 28. Kd2 {[%clk 0:00:23]}  Bg6 {[%clk 0:01:28]} 29. Qd6 {[%clk 0:00:15]}  Rxd4+ {[%clk 0:01:23]} 30. Qxd4 {[%clk 0:00:13]}  Qf5 {[%clk 0:01:20]} 31. Ke1 {[%clk 0:00:13]}  Bh5 {[%clk 0:01:04]} 32. c4 {[%clk 0:00:10]}  Kh7 {[%clk 0:00:57]} 33. Kd2 {[%clk 0:00:09]}  Bg6 {[%clk 0:00:46]} 34. Rc1 {[%clk 0:00:06]}  Re8 {[%clk 0:00:44]} 35. Kc3 {[%clk 0:00:05]}  a5 {[%clk 0:00:41]} 36. a3 {[%clk 0:00:04]}  b5 {[%clk 0:00:40]} 37. c5 {[%clk 0:00:03]}  Re4 {[%clk 0:00:37]} 38. Qd6 {[%clk 0:00:01]}  Rc4+ {[%clk 0:00:31]} 39. Kb3 {[%clk 0:00:01]}  Rxc1 {[%clk 0:00:30]} 40. Bxc1 {[%clk 0:00:01]}  Qc2+ {[%clk 0:00:30]} 41. Ka2 {[%clk 0:00:00]}  Bf7+ {[%clk 0:00:27]} 0-1


[Site "https://www.chess.com"]

[Event "Titled Tuesday Blitz October 31 Late 2023"]
[White "Brodsky, David"]
[Black "balachess2006"]
[WhiteFideId "2073250"]
[WhiteElo "2803"]
[BlackElo "2591"]
[Result "1-0"]
[Round "5"]
[TimeControl "180+1"]
[Date "2023.10.31"]
[WhiteClock "0:00:05"]
[BlackClock "0:00:07"]
[Board "34"]

1. e4 {[%clk 0:03:00]}  c5 {[%clk 0:03:00]} 2. Nf3 {[%clk 0:03:00]}  Nc6 {[%clk 0:03:00]} 3. d4 {[%clk 0:03:00]}  cxd4 {[%clk 0:03:01]} 4. Nxd4 {[%clk 0:03:00]}  g6 {[%clk 0:02:59]} 5. c4 {[%clk 0:03:00]}  Nf6 {[%clk 0:02:59]} 6. Nc3 {[%clk 0:03:00]}  Nxd4 {[%clk 0:03:00]} 7. Qxd4 {[%clk 0:03:00]}  d6 {[%clk 0:03:00]} 8. Be2 {[%clk 0:03:00]}  Bg7 {[%clk 0:03:00]} 9. O-O {[%clk 0:03:00]}  O-O {[%clk 0:03:01]} 10. Qd3 {[%clk 0:03:00]}  Be6 {[%clk 0:03:01]} 11. Be3 {[%clk 0:02:59]}  Qa5 {[%clk 0:03:01]} 12. Bd4 {[%clk 0:02:49]}  Rfc8 {[%clk 0:03:00]} 13. b3 {[%clk 0:02:48]}  a6 {[%clk 0:02:57]} 14. Rac1 {[%clk 0:02:43]}  Nd7 {[%clk 0:02:51]} 15. Bxg7 {[%clk 0:02:34]}  Kxg7 {[%clk 0:02:52]} 16. f4 {[%clk 0:02:33]}  f6 {[%clk 0:02:48]} 17. Bf3 {[%clk 0:02:08]}  Rab8 {[%clk 0:02:47]} 18. Nd5 {[%clk 0:02:02]}  Kf8 {[%clk 0:02:32]} 19. a4 {[%clk 0:01:45]}  b5 {[%clk 0:02:08]} 20. cxb5 {[%clk 0:01:37]}  Rxc1 {[%clk 0:02:08]} 21. Rxc1 {[%clk 0:01:37]}  Bxd5 {[%clk 0:02:02]} 22. Qxd5 {[%clk 0:01:05]}  axb5 {[%clk 0:02:02]} 23. Bg4 {[%clk 0:00:56]}  f5 {[%clk 0:01:43]} 24. exf5 {[%clk 0:00:46]}  Nf6 {[%clk 0:01:43]} 25. Qf3 {[%clk 0:00:31]}  bxa4 {[%clk 0:01:41]} 26. fxg6 {[%clk 0:00:28]}  h5 {[%clk 0:01:02]} 27. Be6 {[%clk 0:00:21]}  Qd2 {[%clk 0:00:39]} 28. Rd1 {[%clk 0:00:19]}  Qc2 {[%clk 0:00:31]} 29. bxa4 {[%clk 0:00:17]}  Rb2 {[%clk 0:00:25]} 30. f5 {[%clk 0:00:11]}  Kg7 {[%clk 0:00:21]} 31. h3 {[%clk 0:00:10]}  Qc5+ {[%clk 0:00:18]} 32. Kh1 {[%clk 0:00:10]}  h4 {[%clk 0:00:18]} 33. Re1 {[%clk 0:00:06]}  Qc2 {[%clk 0:00:17]} 34. Bf7 {[%clk 0:00:04]}  Nh5 {[%clk 0:00:15]} 35. Rxe7 {[%clk 0:00:01]}  Ng3+ {[%clk 0:00:15]} 36. Kh2 {[%clk 0:00:02]}  Qc1 {[%clk 0:00:08]} 37. Bb3+ {[%clk 0:00:02]}  Kf6 {[%clk 0:00:07]} 38. Rf7+ {[%clk 0:00:03]}  Kg5 {[%clk 0:00:07]} 39. Bd1 {[%clk 0:00:03]}  Rxg2+ {[%clk 0:00:04]} 40. Kxg2 {[%clk 0:00:02]}  Qd2+ {[%clk 0:00:04]} 41. Qf2 {[%clk 0:00:02]}  Qxd1 {[%clk 0:00:04]} 42. Qg1 {[%clk 0:00:01]}  Qd5+ {[%clk 0:00:04]} 43. Kf2 {[%clk 0:00:02]}  Qd2+ {[%clk 0:00:04]} 44. Kf3 {[%clk 0:00:02]}  Qf4+ {[%clk 0:00:05]} 45. Kg2 {[%clk 0:00:01]}  Qe4+ {[%clk 0:00:06]} 46. Kf2 {[%clk 0:00:02]}  Qd4+ {[%clk 0:00:06]} 47. Kg2 {[%clk 0:00:02]}  Qd2+ {[%clk 0:00:06]} 48. Kf3 {[%clk 0:00:01]}  Qd5+ {[%clk 0:00:07]} 49. Ke3 {[%clk 0:00:02]}  Qe4+ {[%clk 0:00:07]} 50. Kd2 {[%clk 0:00:02]}  Qb4+ {[%clk 0:00:07]} 51. Kd3 {[%clk 0:00:02]}  Qb3+ {[%clk 0:00:07]} 52. Kd4 {[%clk 0:00:03]}  Qb6+ {[%clk 0:00:08]} 53. Kd5 {[%clk 0:00:03]}  Qxg1 {[%clk 0:00:08]} 54. g7 {[%clk 0:00:04]}  Qd1+ {[%clk 0:00:08]} 55. Kc6 {[%clk 0:00:03]}  Qc2+ {[%clk 0:00:08]} 56. Kd7 {[%clk 0:00:03]}  Qxa4+ {[%clk 0:00:07]} 57. Ke7 {[%clk 0:00:02]}  Qa7+ {[%clk 0:00:07]} 58. Ke6 {[%clk 0:00:03]}  Qa2+ {[%clk 0:00:07]} 59. Ke7 {[%clk 0:00:03]}  Qe2+ {[%clk 0:00:07]} 60. Kd8 {[%clk 0:00:03]}  Nxf5 {[%clk 0:00:04]} 61. g8=Q+ {[%clk 0:00:03]}  Kf4 {[%clk 0:00:05]} 62. Qf8 {[%clk 0:00:03]}  Qe5 {[%clk 0:00:05]} 63. Qe8 {[%clk 0:00:01]}  Qxe8+ {[%clk 0:00:05]} 64. Kxe8 {[%clk 0:00:02]}  d5 {[%clk 0:00:05]} 65. Rd7 {[%clk 0:00:03]}  d4 {[%clk 0:00:05]} 66. Kf7 {[%clk 0:00:04]}  Ke4 {[%clk 0:00:04]} 67. Kg6 {[%clk 0:00:04]}  Ne3 {[%clk 0:00:04]} 68. Kg5 {[%clk 0:00:04]}  Nd5 {[%clk 0:00:04]} 69. Kxh4 {[%clk 0:00:04]}  d3 {[%clk 0:00:04]} 70. Ra7 {[%clk 0:00:04]}  d2 {[%clk 0:00:04]} 71. Ra1 {[%clk 0:00:05]}  Nc3 {[%clk 0:00:04]} 72. Kg5 {[%clk 0:00:05]}  Kd3 {[%clk 0:00:04]} 73. h4 {[%clk 0:00:05]}  Kc2 {[%clk 0:00:03]} 74. h5 {[%clk 0:00:05]}  Nb1 {[%clk 0:00:04]} 75. Ra2+ {[%clk 0:00:06]}  Kd3 {[%clk 0:00:03]} 76. Rxd2+ {[%clk 0:00:06]}  Nxd2 {[%clk 0:00:04]} 77. h6 {[%clk 0:00:07]}  Nf3+ {[%clk 0:00:03]} 78. Kf6 {[%clk 0:00:05]}  Nd2 {[%clk 0:00:01]} 79. h7 {[%clk 0:00:05]}  Ne4+ {[%clk 0:00:02]} 80. Kg6 {[%clk 0:00:05]}  Kd4 {[%clk 0:00:02]} 81. h8=Q+ {[%clk 0:00:05]}  Kd5 {[%clk 0:00:03]} 82. Qd8+ {[%clk 0:00:05]}  Nd6 {[%clk 0:00:04]} 83. Kf6 {[%clk 0:00:05]}  Kc6 {[%clk 0:00:05]} 84. Ke6 {[%clk 0:00:05]}  Nb5 {[%clk 0:00:06]} 85. Qd5+ {[%clk 0:00:03]}  Kb6 {[%clk 0:00:07]} 86. Kd7 {[%clk 0:00:04]}  Na7 {[%clk 0:00:07]} 87. Kd6 {[%clk 0:00:02]}  Nb5+ {[%clk 0:00:07]} 88. Kd7 {[%clk 0:00:02]}  Na7 {[%clk 0:00:07]} 89. Qd6+ {[%clk 0:00:03]}  Kb7 {[%clk 0:00:08]} 90. Qc7+ {[%clk 0:00:03]}  Ka6 {[%clk 0:00:08]} 91. Qb8 {[%clk 0:00:03]}  Nb5 {[%clk 0:00:08]} 92. Kc6 {[%clk 0:00:03]}  Na7+ {[%clk 0:00:08]} 93. Kc5 {[%clk 0:00:04]}  Nc8 {[%clk 0:00:06]} 94. Qxc8+ {[%clk 0:00:04]}  Ka7 {[%clk 0:00:06]} 95. Qd7+ {[%clk 0:00:04]}  Kb8 {[%clk 0:00:07]} 96. Kb6 {[%clk 0:00:04]}  Ka8 {[%clk 0:00:07]} 97. Qb7# {[%clk 0:00:05]} 1-0


[Site "https://www.chess.com"]

[Event "Titled Tuesday Blitz October 31 Late 2023"]
[White "Darini, Pouria"]
[Black "Mystery2007"]
[WhiteFideId "12502200"]
[WhiteElo "2750"]
[BlackElo "2483"]
[Result "1-0"]
[Round "5"]
[TimeControl "180+1"]
[Date "2023.10.31"]
[WhiteClock "0:00:07"]
[BlackClock "0:00:00"]
[Board "37"]

1. e4 {[%clk 0:02:59]}  a6 {[%clk 0:03:00]} 2. d4 {[%clk 0:02:58]}  e6 {[%clk 0:03:01]} 3. Nf3 {[%clk 0:02:57]}  d5 {[%clk 0:03:01]} 4. exd5 {[%clk 0:02:57]}  exd5 {[%clk 0:03:02]} 5. Bd3 {[%clk 0:02:57]}  Bd6 {[%clk 0:03:02]} 6. O-O {[%clk 0:02:55]}  Ne7 {[%clk 0:03:03]} 7. c3 {[%clk 0:02:53]}  O-O {[%clk 0:03:02]} 8. Qc2 {[%clk 0:02:53]}  h6 {[%clk 0:02:56]} 9. Re1 {[%clk 0:02:51]}  Nbc6 {[%clk 0:02:56]} 10. Nbd2 {[%clk 0:02:52]}  Bg4 {[%clk 0:02:54]} 11. h3 {[%clk 0:02:23]}  Bh5 {[%clk 0:02:53]} 12. Nh4 {[%clk 0:02:23]}  f5 {[%clk 0:01:46]} 13. Ndf3 {[%clk 0:02:04]}  Qd7 {[%clk 0:01:32]} 14. Ne5 {[%clk 0:01:53]}  Bxe5 {[%clk 0:01:22]} 15. dxe5 {[%clk 0:01:54]}  Qe6 {[%clk 0:01:20]} 16. f4 {[%clk 0:01:38]}  Kh8 {[%clk 0:01:12]} 17. Qf2 {[%clk 0:01:34]}  Na5 {[%clk 0:00:59]} 18. b3 {[%clk 0:01:33]}  b6 {[%clk 0:00:58]} 19. Be3 {[%clk 0:01:31]}  c5 {[%clk 0:00:54]} 20. b4 {[%clk 0:01:22]}  cxb4 {[%clk 0:00:51]} 21. cxb4 {[%clk 0:01:22]}  Nc4 {[%clk 0:00:49]} 22. Bxc4 {[%clk 0:01:13]}  dxc4 {[%clk 0:00:50]} 23. Bxb6 {[%clk 0:01:14]}  Nd5 {[%clk 0:00:46]} 24. Bc5 {[%clk 0:01:14]}  Rfd8 {[%clk 0:00:42]} 25. g4 {[%clk 0:01:13]}  Bg6 {[%clk 0:00:31]} 26. Rac1 {[%clk 0:00:37]}  c3 {[%clk 0:00:24]} 27. Re2 {[%clk 0:00:27]}  Bh7 {[%clk 0:00:22]} 28. gxf5 {[%clk 0:00:23]}  Bxf5 {[%clk 0:00:22]} 29. Qg3 {[%clk 0:00:24]}  Rd7 {[%clk 0:00:17]} 30. Kh2 {[%clk 0:00:24]}  Re8 {[%clk 0:00:15]} 31. Rg2 {[%clk 0:00:24]}  Be4 {[%clk 0:00:14]} 32. Re2 {[%clk 0:00:22]}  Bf5 {[%clk 0:00:13]} 33. Rg1 {[%clk 0:00:17]}  Rf7 {[%clk 0:00:13]} 34. Reg2 {[%clk 0:00:16]}  Be4 {[%clk 0:00:11]} 35. Re2 {[%clk 0:00:16]}  Bh7 {[%clk 0:00:07]} 36. Rf2 {[%clk 0:00:15]}  Bf5 {[%clk 0:00:06]} 37. Re1 {[%clk 0:00:15]}  Rc8 {[%clk 0:00:05]} 38. a3 {[%clk 0:00:15]}  a5 {[%clk 0:00:05]} 39. Rc1 {[%clk 0:00:15]}  a4 {[%clk 0:00:05]} 40. Re1 {[%clk 0:00:15]}  Re8 {[%clk 0:00:05]} 41. Rg1 {[%clk 0:00:15]}  Rc8 {[%clk 0:00:05]} 42. Rfg2 {[%clk 0:00:15]}  Re8 {[%clk 0:00:05]} 43. Qf3 {[%clk 0:00:16]}  Rd8 {[%clk 0:00:03]} 44. Qh5 {[%clk 0:00:16]}  Bh7 {[%clk 0:00:03]} 45. Ng6+ {[%clk 0:00:16]}  Bxg6 {[%clk 0:00:03]} 46. Rxg6 {[%clk 0:00:16]}  Qf5 {[%clk 0:00:03]} 47. Qxf5 {[%clk 0:00:17]}  Rxf5 {[%clk 0:00:03]} 48. Rxg7 {[%clk 0:00:17]}  Nxf4 {[%clk 0:00:03]} 49. Rc7 {[%clk 0:00:11]}  Ne6 {[%clk 0:00:01]} 50. Rc6 {[%clk 0:00:07]}  c2 {[%clk 0:00:00]} 51. Rxe6 {[%clk 0:00:07]} 1-0


[Site "https://www.chess.com"]

[Event "Titled Tuesday Blitz October 31 Late 2023"]
[White "Harikrishnan.A.Ra"]
[Black "Ahn, Hongjin"]
[WhiteFideId "5081483"]
[BlackFideId "13201492"]
[WhiteElo "2742"]
[BlackElo "2438"]
[Result "1-0"]
[Round "5"]
[TimeControl "180+1"]
[Date "2023.10.31"]
[WhiteClock "0:00:15"]
[BlackClock "0:00:40"]
[Board "40"]

1. d4 {[%clk 0:03:00]}  d5 {[%clk 0:02:57]} 2. c4 {[%clk 0:03:00]}  e6 {[%clk 0:02:57]} 3. Nc3 {[%clk 0:03:00]}  a6 {[%clk 0:02:57]} 4. cxd5 {[%clk 0:03:01]}  exd5 {[%clk 0:02:58]} 5. Bf4 {[%clk 0:03:01]}  c6 {[%clk 0:02:59]} 6. e3 {[%clk 0:03:01]}  Bd6 {[%clk 0:02:59]} 7. Bxd6 {[%clk 0:03:00]}  Qxd6 {[%clk 0:03:00]} 8. Bd3 {[%clk 0:03:01]}  Ne7 {[%clk 0:03:01]} 9. h3 {[%clk 0:03:01]}  Bf5 {[%clk 0:02:56]} 10. Nf3 {[%clk 0:03:01]}  O-O {[%clk 0:02:56]} 11. O-O {[%clk 0:03:01]}  Nd7 {[%clk 0:02:54]} 12. Rb1 {[%clk 0:03:00]}  Nf6 {[%clk 0:02:48]} 13. Bxf5 {[%clk 0:02:55]}  Nxf5 {[%clk 0:02:48]} 14. Qd3 {[%clk 0:02:56]}  Qe6 {[%clk 0:02:47]} 15. Nd2 {[%clk 0:02:51]}  Nd6 {[%clk 0:02:46]} 16. b4 {[%clk 0:02:45]}  Nfe4 {[%clk 0:02:46]} 17. Ncxe4 {[%clk 0:02:43]}  dxe4 {[%clk 0:02:47]} 18. Qc2 {[%clk 0:02:41]}  a5 {[%clk 0:02:41]} 19. a3 {[%clk 0:02:22]}  f5 {[%clk 0:02:31]} 20. Qb3 {[%clk 0:02:16]}  Qxb3 {[%clk 0:02:26]} 21. Nxb3 {[%clk 0:02:17]}  axb4 {[%clk 0:02:25]} 22. axb4 {[%clk 0:02:15]}  Nc4 {[%clk 0:02:20]} 23. Rfc1 {[%clk 0:02:10]}  b5 {[%clk 0:02:12]} 24. Na5 {[%clk 0:02:09]}  Nxa5 {[%clk 0:02:09]} 25. bxa5 {[%clk 0:02:10]}  Rf6 {[%clk 0:02:07]} 26. d5 {[%clk 0:02:06]}  cxd5 {[%clk 0:02:04]} 27. Rxb5 {[%clk 0:02:06]}  Rd6 {[%clk 0:02:00]} 28. Rb6 {[%clk 0:01:43]}  Rxb6 {[%clk 0:01:50]} 29. axb6 {[%clk 0:01:44]}  Rb8 {[%clk 0:01:51]} 30. Rc6 {[%clk 0:01:43]}  Kf7 {[%clk 0:01:51]} 31. g4 {[%clk 0:01:26]}  fxg4 {[%clk 0:01:44]} 32. hxg4 {[%clk 0:01:26]}  Ke7 {[%clk 0:01:44]} 33. Rc7+ {[%clk 0:01:25]}  Kd6 {[%clk 0:01:44]} 34. Rxg7 {[%clk 0:01:24]}  Rxb6 {[%clk 0:01:44]} 35. Rxh7 {[%clk 0:01:25]}  Rb2 {[%clk 0:01:41]} 36. Rh8 {[%clk 0:01:23]}  Ke5 {[%clk 0:01:40]} 37. Rd8 {[%clk 0:01:15]}  Rd2 {[%clk 0:01:39]} 38. Kg2 {[%clk 0:01:14]}  Kf6 {[%clk 0:01:40]} 39. Kg3 {[%clk 0:01:13]}  Kg5 {[%clk 0:01:40]} 40. Rg8+ {[%clk 0:01:13]}  Kf6 {[%clk 0:01:41]} 41. Rf8+ {[%clk 0:01:13]}  Kg6 {[%clk 0:01:41]} 42. Rd8 {[%clk 0:01:09]}  Kg5 {[%clk 0:01:38]} 43. Rf8 {[%clk 0:01:02]}  Rd1 {[%clk 0:01:35]} 44. Rf5+ {[%clk 0:01:01]}  Kg6 {[%clk 0:01:36]} 45. Kf4 {[%clk 0:01:01]}  Rd3 {[%clk 0:01:28]} 46. g5 {[%clk 0:00:58]}  Rd2 {[%clk 0:01:25]} 47. Rf6+ {[%clk 0:00:58]}  Kg7 {[%clk 0:01:26]} 48. Ke5 {[%clk 0:00:58]}  Rd1 {[%clk 0:01:26]} 49. Rd6 {[%clk 0:00:48]}  Rd2 {[%clk 0:01:25]} 50. Rxd5 {[%clk 0:00:49]}  Rxf2 {[%clk 0:01:26]} 51. Kxe4 {[%clk 0:00:49]}  Kg6 {[%clk 0:01:26]} 52. Re5 {[%clk 0:00:48]}  Ra2 {[%clk 0:01:23]} 53. Rb5 {[%clk 0:00:44]}  Ra4+ {[%clk 0:01:23]} 54. Kf3 {[%clk 0:00:37]}  Ra3 {[%clk 0:01:22]} 55. Kf4 {[%clk 0:00:37]}  Ra1 {[%clk 0:01:18]} 56. Rb6+ {[%clk 0:00:36]}  Kg7 {[%clk 0:01:18]} 57. e4 {[%clk 0:00:36]}  Rf1+ {[%clk 0:01:18]} 58. Ke5 {[%clk 0:00:36]}  Ra1 {[%clk 0:01:19]} 59. Kf5 {[%clk 0:00:35]}  Rf1+ {[%clk 0:01:19]} 60. Ke6 {[%clk 0:00:36]}  Ra1 {[%clk 0:01:20]} 61. e5 {[%clk 0:00:35]}  Kg6 {[%clk 0:01:20]} 62. Kd7+ {[%clk 0:00:25]}  Kxg5 {[%clk 0:01:20]} 63. e6 {[%clk 0:00:26]}  Ra7+ {[%clk 0:01:12]} 64. Ke8 {[%clk 0:00:23]}  Kg6 {[%clk 0:01:08]} 65. e7+ {[%clk 0:00:21]}  Kg7 {[%clk 0:01:08]} 66. Rb8 {[%clk 0:00:15]}  Kf6 {[%clk 0:01:01]} 67. Rb6+ {[%clk 0:00:15]}  Kg7 {[%clk 0:01:01]} 68. Rc6 {[%clk 0:00:15]}  Rb7 {[%clk 0:00:50]} 69. Kd8 {[%clk 0:00:15]}  Rb8+ {[%clk 0:00:40]} 70. Rc8 {[%clk 0:00:15]} 1-0


[Site "https://www.chess.com"]

[Event "Titled Tuesday Blitz October 31 Late 2023"]
[White "Korchmar, Vasiliy"]
[Black "Korpics, Zsolt"]
[WhiteFideId "24131750"]
[BlackFideId "705241"]
[WhiteElo "2741"]
[BlackElo "2406"]
[Result "1-0"]
[Round "5"]
[TimeControl "180+1"]
[Date "2023.10.31"]
[WhiteClock "0:00:13"]
[BlackClock "0:00:09"]
[Board "41"]

1. e4 {[%clk 0:03:00]}  c5 {[%clk 0:02:58]} 2. d4 {[%clk 0:03:00]}  cxd4 {[%clk 0:02:58]} 3. Qxd4 {[%clk 0:03:01]}  Nc6 {[%clk 0:02:57]} 4. Qd3 {[%clk 0:03:01]}  Nf6 {[%clk 0:02:49]} 5. Nc3 {[%clk 0:03:01]}  d6 {[%clk 0:02:49]} 6. Nf3 {[%clk 0:03:00]}  g6 {[%clk 0:02:49]} 7. Be2 {[%clk 0:03:00]}  Bg7 {[%clk 0:02:49]} 8. O-O {[%clk 0:03:01]}  O-O {[%clk 0:02:48]} 9. Nd5 {[%clk 0:03:02]}  Be6 {[%clk 0:02:37]} 10. c3 {[%clk 0:03:01]}  Rc8 {[%clk 0:02:32]} 11. Bg5 {[%clk 0:03:01]}  Nd7 {[%clk 0:02:21]} 12. Rad1 {[%clk 0:02:59]}  Nc5 {[%clk 0:02:16]} 13. Qe3 {[%clk 0:02:58]}  f6 {[%clk 0:01:55]} 14. Bf4 {[%clk 0:02:53]}  b6 {[%clk 0:01:37]} 15. h4 {[%clk 0:02:39]}  Qe8 {[%clk 0:01:34]} 16. Bb5 {[%clk 0:02:33]}  Bd7 {[%clk 0:01:31]} 17. b4 {[%clk 0:02:19]}  Ne6 {[%clk 0:01:24]} 18. Bg3 {[%clk 0:02:19]}  Kh8 {[%clk 0:01:20]} 19. a4 {[%clk 0:02:08]}  f5 {[%clk 0:01:08]} 20. exf5 {[%clk 0:02:06]}  gxf5 {[%clk 0:01:09]} 21. Rfe1 {[%clk 0:01:57]}  Qf7 {[%clk 0:01:04]} 22. Nxe7 {[%clk 0:01:39]}  Qxe7 {[%clk 0:00:56]} 23. Bxd6 {[%clk 0:01:38]}  Qf7 {[%clk 0:00:52]} 24. Bxf8 {[%clk 0:01:39]}  Nxf8 {[%clk 0:00:51]} 25. Ng5 {[%clk 0:01:28]}  Qg6 {[%clk 0:00:40]} 26. Bc4 {[%clk 0:01:27]}  h6 {[%clk 0:00:33]} 27. Nf7+ {[%clk 0:01:26]}  Kh7 {[%clk 0:00:33]} 28. Rd6 {[%clk 0:01:26]}  Qh5 {[%clk 0:00:31]} 29. Qd3 {[%clk 0:00:57]}  Be8 {[%clk 0:00:27]} 30. Ng5+ {[%clk 0:00:52]}  hxg5 {[%clk 0:00:25]} 31. Qxf5+ {[%clk 0:00:52]}  Bg6 {[%clk 0:00:21]} 32. Qxc8 {[%clk 0:00:53]}  Ne5 {[%clk 0:00:20]} 33. Qc7 {[%clk 0:00:23]}  Ng4 {[%clk 0:00:14]} 34. Re7 {[%clk 0:00:21]}  Qxh4 {[%clk 0:00:09]} 35. Rxg7+ {[%clk 0:00:20]}  Kh6 {[%clk 0:00:09]} 36. Rdxg6+ {[%clk 0:00:19]}  Kh5 {[%clk 0:00:09]} 37. Rh7+ {[%clk 0:00:15]}  Kxg6 {[%clk 0:00:09]} 38. Qf7# {[%clk 0:00:13]} 1-0


[Site "https://www.chess.com"]

[Event "Titled Tuesday Blitz October 31 Late 2023"]
[White "Rustemov, Alexander"]
[Black "Toropov, Pavel"]
[WhiteFideId "4119002"]
[BlackFideId "24129178"]
[WhiteElo "2860"]
[BlackElo "2564"]
[Result "1-0"]
[Round "5"]
[TimeControl "180+1"]
[Date "2023.10.31"]
[WhiteClock "0:00:20"]
[BlackClock "0:00:00"]
[Board "45"]

1. d4 {[%clk 0:02:56]}  d5 {[%clk 0:02:59]} 2. c4 {[%clk 0:02:55]}  c6 {[%clk 0:02:56]} 3. Nc3 {[%clk 0:02:56]}  Nf6 {[%clk 0:02:56]} 4. e3 {[%clk 0:02:55]}  g6 {[%clk 0:02:54]} 5. Nf3 {[%clk 0:02:55]}  Bg7 {[%clk 0:02:55]} 6. Bd3 {[%clk 0:02:55]}  O-O {[%clk 0:02:55]} 7. O-O {[%clk 0:02:55]}  Bg4 {[%clk 0:02:55]} 8. h3 {[%clk 0:02:54]}  Bxf3 {[%clk 0:02:56]} 9. Qxf3 {[%clk 0:02:55]}  e6 {[%clk 0:02:56]} 10. Rd1 {[%clk 0:02:55]}  Nbd7 {[%clk 0:02:56]} 11. Bd2 {[%clk 0:02:52]}  Re8 {[%clk 0:02:54]} 12. Rac1 {[%clk 0:02:51]}  a6 {[%clk 0:02:52]} 13. Be1 {[%clk 0:02:50]}  Rc8 {[%clk 0:02:45]} 14. Bf1 {[%clk 0:02:48]}  Qe7 {[%clk 0:02:37]} 15. Qe2 {[%clk 0:02:48]}  Red8 {[%clk 0:02:36]} 16. b3 {[%clk 0:02:43]}  b5 {[%clk 0:02:21]} 17. cxd5 {[%clk 0:02:40]}  exd5 {[%clk 0:01:48]} 18. Rc2 {[%clk 0:02:34]}  Re8 {[%clk 0:01:42]} 19. Rdc1 {[%clk 0:02:33]}  Qd6 {[%clk 0:01:40]} 20. Qf3 {[%clk 0:02:15]}  h5 {[%clk 0:01:27]} 21. Bd3 {[%clk 0:02:15]}  Re6 {[%clk 0:01:25]} 22. a4 {[%clk 0:02:11]}  b4 {[%clk 0:01:15]} 23. Ne2 {[%clk 0:02:08]}  a5 {[%clk 0:01:13]} 24. Nf4 {[%clk 0:02:04]}  Ree8 {[%clk 0:01:08]} 25. Bb5 {[%clk 0:01:58]}  Nb8 {[%clk 0:00:58]} 26. Bf1 {[%clk 0:01:57]}  Ne4 {[%clk 0:00:52]} 27. Nd3 {[%clk 0:01:56]}  Nd7 {[%clk 0:00:52]} 28. Qf4 {[%clk 0:01:55]}  Qe6 {[%clk 0:00:44]} 29. Qf3 {[%clk 0:01:39]}  Qd6 {[%clk 0:00:38]} 30. g3 {[%clk 0:01:38]}  c5 {[%clk 0:00:29]} 31. dxc5 {[%clk 0:01:36]}  Ndxc5 {[%clk 0:00:29]} 32. Nxc5 {[%clk 0:01:32]}  Rxc5 {[%clk 0:00:29]} 33. Rxc5 {[%clk 0:01:22]}  Nxc5 {[%clk 0:00:30]} 34. Rd1 {[%clk 0:01:18]}  Rd8 {[%clk 0:00:26]} 35. Bc4 {[%clk 0:01:16]}  Qf6 {[%clk 0:00:15]} 36. Qxf6 {[%clk 0:01:14]}  Bxf6 {[%clk 0:00:16]} 37. Rxd5 {[%clk 0:01:15]}  Rxd5 {[%clk 0:00:15]} 38. Bxd5 {[%clk 0:01:15]}  Bc3 {[%clk 0:00:14]} 39. Kf1 {[%clk 0:00:55]}  Nd3 {[%clk 0:00:13]} 40. Be4 {[%clk 0:00:47]}  Nxe1 {[%clk 0:00:12]} 41. Ke2 {[%clk 0:00:46]}  Kf8 {[%clk 0:00:11]} 42. g4 {[%clk 0:00:45]}  h4 {[%clk 0:00:10]} 43. g5 {[%clk 0:00:44]}  Ke7 {[%clk 0:00:10]} 44. f4 {[%clk 0:00:45]}  Kd6 {[%clk 0:00:09]} 45. Kf2 {[%clk 0:00:40]}  Ke6 {[%clk 0:00:07]} 46. Ke2 {[%clk 0:00:39]}  f5 {[%clk 0:00:07]} 47. Bb1 {[%clk 0:00:30]}  Kd6 {[%clk 0:00:06]} 48. e4 {[%clk 0:00:29]}  fxe4 {[%clk 0:00:05]} 49. Bxe4 {[%clk 0:00:30]}  Ke6 {[%clk 0:00:05]} 50. Bxg6 {[%clk 0:00:30]}  Ng2 {[%clk 0:00:06]} 51. Kf3 {[%clk 0:00:30]}  Ne1+ {[%clk 0:00:06]} 52. Kg4 {[%clk 0:00:30]}  Ng2 {[%clk 0:00:05]} 53. f5+ {[%clk 0:00:28]}  Ke7 {[%clk 0:00:04]} 54. f6+ {[%clk 0:00:28]}  Kf8 {[%clk 0:00:04]} 55. Be4 {[%clk 0:00:25]}  Ne3+ {[%clk 0:00:04]} 56. Kxh4 {[%clk 0:00:24]}  Nf1 {[%clk 0:00:03]} 57. Kg4 {[%clk 0:00:22]}  Nd2 {[%clk 0:00:03]} 58. Bd5 {[%clk 0:00:23]}  Nf1 {[%clk 0:00:03]} 59. Be6 {[%clk 0:00:21]}  Ne3+ {[%clk 0:00:03]} 60. Kh5 {[%clk 0:00:20]}  Nc2 {[%clk 0:00:01]} 61. h4 {[%clk 0:00:20]}  Nd4 {[%clk 0:00:00]} 62. Bc4 {[%clk 0:00:20]} 1-0


[Site "https://www.chess.com"]